bitfinex-derivatives/quotes_SOLF0:USTF0_20241230
["timestamp","ask_amount","ask_price","bid_price","bid_amount"]
[1735584594381,12.67268767,194.64,194.53,92.4336039]
[1735584594580,1.5507,194.63,194.53,92.4336039]
[1735584594773,12.67268767,194.61,194.53,92.4336039]
[1735584594978,3.48,194.6,194.53,3.88031189]
[1735584595177,3.48,194.6,194.5,4.49513747]
[1735584595371,3.48,194.6,194.46,14.21508767]
[1735584595372,12.67268767,194.58,194.46,14.21508767]
[1735584595582,12.67268767,194.55,194.47,4.49701594]
[1735584595777,5.0307,194.54,194.44,4.49442869]
[1735584595980,5.0307,194.54,194.43,12.67268767]
[1735584595981,12.67268767,194.68,194.53,12.67268767]
[1735584596182,1.5507,194.67,194.56,12.67268767]
[1735584596885,28.56846247,194.65,194.56,12.67268767]
[1735584598085,1.5507,194.67,194.53,16.15268767]
[1735584598281,1.5507,194.67,194.57,2.572]
[1735584598485,2.5712,194.64,194.54,4.49190683]
[1735584599390,2.571,194.66,194.61,2.5716]
[1735584599576,1.5507,194.67,194.54,4.49190683]
[1735584599781,3.48,194.66,194.54,4.49188894]
[1735584600086,2.5714,194.64,194.58,2.5719]
[1735584600686,2.5714,194.63,194.58,2.5719]
[1735584600893,3.48,194.66,194.58,2.5719]
[1735584601077,3.48,194.66,194.6,2.5717]
[1735584601584,1.4654,194.69,194.66,2.571]
[1735584601785,1.4654,194.69,194.59,12.67268767]
[1735584602089,1.4654,194.69,194.65,2.5711]
[1735584602283,1.4654,194.69,194.59,12.67268767]
[1735584602583,1.5199,194.72,194.67,2.5707]
[1735584602978,1.5199,194.72,194.62,12.67268767]
[1735584604185,1.5199,194.72,194.65,12.67268767]
[1735584604380,1.5912,194.76,194.65,12.67268767]
[1735584605385,2.5694,194.79,194.68,12.67268767]
[1735584605386,3.48,194.79,194.68,12.67268767]
[1735584605995,18.26918767,194.8,194.73,2.57]
[1735584606185,18.26918767,194.8,194.68,12.67268767]
[1735584606686,18.26918767,194.8,194.73,2.5699]
[1735584607089,5.5965,194.8,194.73,2.5699]
[1735584607285,4.1327,194.8,194.74,2.5699]
[1735584608281,1.5635,194.8,194.74,2.5699]
[1735584608487,2.5693,194.79,194.74,2.5699]
[1735584611393,1.5635,194.8,194.69,7.96401562]
[1735584611590,12.67268767,194.77,194.65,12.67268767]
[1735584611789,12.67268767,194.77,194.63,7.96562557]
[1735584611987,12.67268767,194.77,194.68,2.5707]
[1735584612288,2.57,194.74,194.68,2.5707]
[1735584612686,2.57,194.74,194.69,2.5705]
[1735584613791,2.5701,194.73,194.67,2.5708]
[1735584614192,2.5701,194.73,194.63,4.48562557]
[1735584614393,2.5701,194.73,194.67,2.5707]
[1735584614796,2.5701,194.73,194.63,4.48562557]
[1735584614992,1.5849,194.76,194.67,12.67268767]
[1735584617101,2.5696,194.77,194.72,2.5702]
[1735584617988,2.5694,194.79,194.73,2.5699]
[1735584618691,2.5694,194.79,194.68,3.48]
[1735584619191,14.23618767,194.8,194.68,3.48]
[1735584619392,2.5694,194.78,194.73,2.5699]
[1735584620997,2.5694,194.78,194.74,2.5699]
[1735584623302,14.23618767,194.8,194.68,4.48131156]
[1735584623496,14.23618767,194.8,194.67,16.15268767]
[1735584623800,2.5697,194.76,194.72,2.5702]
[1735584625104,2.5695,194.77,194.73,2.57]
[1735584626303,2.5695,194.77,194.68,4.48114748]
[1735584626497,2.5695,194.77,194.72,2.5701]
[1735584628106,14.23618767,194.8,194.68,4.48114748]
[1735584628403,12.67268767,194.77,194.67,3.48]
[1735584629405,2.5699,194.74,194.7,2.5703]
[1735584629607,12.67268767,194.74,194.62,14.23648767]
[1735584629813,12.67268767,194.74,194.63,4.48105346]
[1735584630505,12.67268767,194.74,194.62,14.23648767]
[1735584630700,12.67268767,194.74,194.63,4.48251833]
[1735584631302,2.5703,194.72,194.62,17.69648767]
[1735584631604,2.5703,194.72,194.63,4.48496689]
[1735584632396,2.5701,194.73,194.63,4.48496689]
[1735584632603,3.46,194.75,194.63,4.48299641]
[1735584632805,1.4727,194.76,194.7,2.5703]
[1735584633202,2.5698,194.75,194.7,2.5703]
[1735584633403,1.4727,194.76,194.72,2.5701]
[1735584634604,6.0293,194.79,194.75,2.5698]
[1735584635003,3.46,194.79,194.69,16.13268767]
[1735584635206,2.5695,194.78,194.69,16.13268767]
[1735584635410,3.46,194.79,194.69,16.13268767]
[1735584635906,2.5696,194.77,194.73,2.5699]
[1735584636308,3.46,194.79,194.69,3.46]
[1735584636510,12.67268767,194.77,194.66,12.67268767]
[1735584637108,2.5699,194.75,194.66,12.67268767]
[1735584637306,12.67268767,194.77,194.66,12.67268767]
[1735584637604,12.67268767,194.77,194.62,14.23648767]
[1735584637605,12.67268767,194.77,194.63,4.47918571]
[1735584637807,12.67268767,194.74,194.63,7.93918571]
[1735584638409,2.5704,194.71,194.66,2.5708]
[1735584638611,2.5704,194.71,194.63,7.93918571]
[1735584639408,12.67268767,194.74,194.63,4.47918571]
[1735584639611,2.5704,194.71,194.63,4.47918571]
[1735584639806,3.0698,194.73,194.62,12.67268767]
[1735584640004,3.0698,194.73,194.63,4.47908422]
[1735584640204,6.5298,194.73,194.63,4.47908422]
[1735584640615,6.5298,194.73,194.64,4.47908422]
[1735584640813,6.5298,194.73,194.63,4.48278641]
[1735584641017,6.5298,194.73,194.62,12.67268767]
[1735584641312,12.67268767,194.68,194.56,14.13498767]
[1735584641519,1.5312,194.67,194.57,4.48834868]
[1735584641816,2.5713,194.64,194.59,2.5718]
[1735584642117,4.9912,194.67,194.57,4.49216224]
[1735584642313,4.9912,194.67,194.56,12.67268767]
[1735584642517,2.5711,194.65,194.6,2.5716]
[1735584642811,7.11493908,194.69,194.63,12.67268767]
[1735584643014,7.11493908,194.69,194.68,2.5707]
[1735584643608,7.11493908,194.69,194.68,7.05918816]
[1735584644015,4.9388,194.77,194.7,2.5704]
[1735584645215,2.5699,194.75,194.68,2.5706]
[1735584645818,2.5699,194.75,194.69,2.5705]
[1735584646218,4.9388,194.77,194.69,2.5705]
[1735584646418,2.5699,194.74,194.69,2.5705]
[1735584646619,17.61148767,194.77,194.69,2.5705]
[1735584647022,2.5698,194.75,194.69,2.5705]
[1735584647514,2.5698,194.75,194.7,2.5704]
[1735584651420,2.5698,194.75,194.66,12.67268767]
[1735584651620,2.5698,194.75,194.71,2.5703]
[1735584652422,2.5699,194.74,194.7,2.5704]
[1735584652820,17.61148767,194.77,194.63,16.13268767]
[1735584653026,12.67268767,194.74,194.64,4.50121181]
[1735584653225,12.67268767,194.71,194.65,4.50121181]
[1735584653425,3.1039,194.7,194.58,16.13268767]
[1735584653720,3.1039,194.7,194.59,4.50259899]
[1735584653927,3.1039,194.7,194.6,4.50259899]
[1735584654129,2.5706,194.69,194.64,2.5712]
[1735584654529,3.1039,194.7,194.64,2.5712]
[1735584654825,2.5707,194.68,194.64,2.5712]
[1735584655026,2.5707,194.68,194.63,2.5713]
[1735584656729,2.5707,194.68,194.64,2.5712]
[1735584659326,2.5707,194.68,194.58,16.13268767]
[1735584659526,5.6743,194.7,194.59,4.48759868]
[1735584659724,5.6743,194.7,194.6,4.48759868]
[1735584659924,5.6743,194.7,194.61,4.48759868]
[1735584660125,5.6743,194.7,194.58,16.13268767]
[1735584660329,2.5709,194.67,194.62,2.5714]
[1735584660529,2.5709,194.67,194.6,4.48759295]
[1735584660733,4.1836,194.67,194.55,14.22498767]
[1735584660930,4.1836,194.67,194.55,17.68498767]
[1735584661223,1.6127,194.67,194.58,12.67268767]
[1735584661427,1.6127,194.67,194.59,4.48579825]
[1735584661729,1.6127,194.67,194.64,2.5711]
[1735584661924,1.6127,194.67,194.58,12.67268767]
[1735584662126,1.6127,194.67,194.59,4.48294569]
[1735584662325,12.67268767,194.68,194.6,4.48294569]
[1735584662527,12.67268767,194.65,194.56,4.48382937]
[1735584662723,12.67268767,194.62,194.57,2.5721]
[1735584662918,12.67268767,194.62,194.5,99.653171]
[1735584663125,12.67268767,194.59,194.51,4.48515212]
[1735584663327,1.5679,194.58,194.52,4.48515212]
[1735584663521,2.5724,194.56,194.51,7.05597949]
[1735584663727,12.67268767,194.56,194.46,6.89404985]
[1735584663929,12.67268767,194.56,194.47,4.48438968]
[1735584664127,12.67268767,194.56,194.48,4.48438968]
[1735584664432,12.67268767,194.56,194.44,16.13268767]
[1735584664433,5.0279,194.58,194.44,12.67268767]
[1735584664731,2.5724,194.55,194.5,2.573]
[1735584664921,5.0279,194.58,194.46,4.48294189]
[1735584665124,5.0279,194.58,194.45,4.48294189]
[1735584665329,2.5725,194.55,194.5,2.5731]
[1735584665532,5.0279,194.58,194.44,12.67268767]
[1735584665825,5.0279,194.58,194.45,4.47735302]
[1735584666022,5.0279,194.58,194.44,12.67268767]
[1735584666332,5.0279,194.58,194.44,17.15004069]
[1735584666734,2.5724,194.55,194.5,2.573]
[1735584666923,5.0279,194.58,194.47,12.67268767]
[1735584667329,5.0279,194.58,194.54,2.5725]
[1735584667628,1.5679,194.58,194.47,16.13268767]
[1735584668431,3.46,194.6,194.59,2.5719]
[1735584668636,3.46,194.6,194.53,12.67268767]
[1735584669328,3.46,194.6,194.58,2.572]
[1735584669535,4.6764,194.67,194.53,12.67268767]
[1735584669827,3.46,194.66,194.56,12.67268767]
[1735584670032,3.46,194.66,194.53,16.13268767]
[1735584670730,3.46,194.66,194.46,89.13763508]
[1735584670731,2.5718,194.6,194.55,2.5724]
[1735584671031,12.67268767,194.63,194.5,12.67268767]
[1735584671334,12.67268767,194.6,194.52,2.5727]
[1735584671522,5.0703,194.59,194.47,12.67268767]
[1735584671727,12.67268767,194.57,194.46,83.99043508]
[1735584672135,2.5727,194.53,194.48,2.5732]
[1735584672327,3.46,194.53,194.43,12.67268767]
[1735584673433,3.46,194.53,194.47,2.5734]
[1735584673636,3.46,194.53,194.43,12.67268767]
[1735584674031,3.46,194.53,194.49,2.5731]
[1735584675024,2.5724,194.56,194.51,2.5728]
[1735584675225,3.46,194.56,194.44,20.32904364]
[1735584675626,3.46,194.56,194.47,20.32904364]
[1735584675835,3.46,194.56,194.49,2.5731]
[1735584676037,3.46,194.56,194.47,20.32904364]
[1735584676235,3.0858,194.58,194.47,20.32904364]
[1735584676831,5.6578,194.58,194.47,20.32904364]
[1735584677232,3.0858,194.58,194.47,20.32904364]
[1735584677531,2.5722,194.57,194.47,20.32904364]
[1735584677730,3.0858,194.58,194.44,20.32904364]
[1735584678633,2.5726,194.54,194.48,2.5732]
[1735584678827,3.46,194.54,194.39,3.79315706]
[1735584679033,20.32904364,194.52,194.39,8.25960419]
[1735584679233,20.32904364,194.52,194.39,3.79315706]
[1735584679432,1.4881,194.51,194.39,3.79315706]
[1735584679833,2.5734,194.48,194.43,2.574]
[1735584680135,1.4881,194.51,194.39,3.79315706]
[1735584680632,1.4881,194.51,194.42,2.5741]
[1735584680841,1.509,194.5,194.42,2.5741]
[1735584681337,1.509,194.5,194.39,3.79315706]
[1735584681837,1.509,194.5,194.43,2.574]
[1735584682035,1.509,194.5,194.39,3.79315706]
[1735584683034,1.509,194.5,194.45,2.5737]
[1735584683235,1.4881,194.51,194.39,3.79315706]
[1735584683437,1.4881,194.51,194.39,8.26526617]
[1735584684228,4.9332,194.57,194.41,20.32904364]
[1735584684435,4.9332,194.57,194.44,20.32904364]
[1735584684728,3.46,194.57,194.45,4.47210911]
[1735584685238,3.46,194.57,194.45,4.46910145]
[1735584686439,3.46,194.57,194.5,2.573]
[1735584686631,3.46,194.57,194.45,4.46910145]
[1735584686836,3.46,194.57,194.43,4.46910145]
[1735584687038,3.46,194.57,194.49,2.5731]
[1735584687342,3.46,194.57,194.44,4.47341391]
[1735584687538,3.46,194.57,194.43,4.47341391]
[1735584687733,3.46,194.57,194.44,4.47404802]
[1735584687938,3.46,194.57,194.43,4.47404802]
[1735584688140,3.46,194.57,194.44,4.47404802]
[1735584688336,3.46,194.57,194.43,4.47404802]
[1735584688531,3.46,194.57,194.44,4.47404802]
[1735584688738,3.46,194.57,194.43,4.47404802]
[1735584688936,3.46,194.57,194.44,4.47404802]
[1735584689131,3.46,194.57,194.43,4.4758571]
[1735584689340,3.46,194.57,194.49,2.5731]
[1735584689842,3.46,194.57,194.43,4.4758571]
[1735584690437,5.036,194.59,194.44,24.80677734]
[1735584690635,5.036,194.59,194.45,4.4777337]
[1735584691846,5.036,194.59,194.52,2.5727]
[1735584692149,1.5193,194.64,194.53,20.32904364]
[1735584692440,2.5711,194.65,194.54,5.0721]
[1735584692637,20.32904364,194.65,194.5,3.46]
[1735584693040,2.572,194.58,194.53,2.5726]
[1735584693339,3.46,194.62,194.5,3.46]
[1735584694443,2.5719,194.59,194.54,2.5725]
[1735584694639,2.5719,194.59,194.5,3.46]
[1735584694844,3.46,194.62,194.5,23.78904364]
[1735584695136,28.61481372,194.67,194.51,1.6121]
[1735584695336,32.07481372,194.67,194.51,6.09449947]
[1735584695544,3.46,194.67,194.59,2.5718]
[1735584696044,3.46,194.67,194.6,2.5716]
[1735584696251,3.46,194.67,194.53,20.32904364]
[1735584696641,3.46,194.67,194.59,2.5718]
[1735584696845,3.46,194.67,194.53,20.32904364]
[1735584697245,21.82354364,194.68,194.6,2.5716]
[1735584697442,21.82354364,194.68,194.54,4.48660283]
[1735584697647,3.46,194.67,194.54,4.48660283]
[1735584698046,2.5711,194.65,194.54,4.48660283]
[1735584698250,3.46,194.67,194.54,4.48708834]
[1735584698956,2.5712,194.64,194.57,2.572]
[1735584699155,3.46,194.67,194.53,20.32904364]
[1735584699448,3.46,194.67,194.52,3.46]
[1735584700049,3.46,194.67,194.57,2.572]
[1735584700348,3.46,194.67,194.52,4.49289162]
[1735584700550,3.46,194.67,194.51,5.0721]
[1735584700751,3.46,194.67,194.52,4.49556595]
[1735584700948,3.46,194.67,194.53,4.49505959]
[1735584701148,3.46,194.67,194.52,4.49505959]
[1735584701346,3.46,194.67,194.51,5.0721]
[1735584701649,3.46,194.67,194.51,1.6121]
[1735584702247,7.15370343,194.66,194.56,2.5722]
[1735584702650,7.15370343,194.66,194.51,1.6121]
[1735584702851,2.5716,194.61,194.57,2.572]
[1735584703151,2.5716,194.61,194.51,1.6121]
[1735584703152,2.5716,194.61,194.52,4.5020365]
[1735584703351,2.5716,194.61,194.51,1.6121]
[1735584703651,2.5716,194.61,194.58,2.572]
[1735584704247,3.46,194.67,194.57,2.5721]
[1735584704448,3.46,194.67,194.52,4.50511441]
[1735584704644,1.4945,194.68,194.52,20.32904364]
[1735584705347,21.82354364,194.68,194.52,20.32904364]
[1735584705955,21.82354364,194.68,194.51,1.6121]
[1735584706248,21.82354364,194.68,194.52,7.96349572]
[1735584706553,2.5716,194.62,194.58,2.572]
[1735584706949,21.82354364,194.68,194.58,2.572]
[1735584707250,2.5716,194.62,194.58,2.572]
[1735584709050,21.82354364,194.68,194.58,2.572]
[1735584709255,2.5717,194.61,194.58,2.572]
[1735584709752,20.32904364,194.65,194.52,3.46]
[1735584709953,20.32904364,194.65,194.57,2.5721]
[1735584710351,2.5717,194.61,194.57,2.5721]
[1735584710553,2.5717,194.61,194.58,2.572]
[1735584711651,2.5714,194.63,194.6,2.5716]
[1735584711854,3.46,194.67,194.55,4.50476678]
[1735584712056,3.46,194.67,194.52,23.78904364]
[1735584712356,1.4945,194.68,194.55,20.32904364]
[1735584712555,1.4945,194.68,194.56,4.50383898]
[1735584712753,1.4945,194.68,194.55,20.32904364]
[1735584712754,1.4945,194.68,194.57,4.50383898]
[1735584712958,1.4945,194.68,194.55,20.32904364]
[1735584713156,1.4945,194.68,194.56,4.50001275]
[1735584713458,1.4945,194.68,194.53,4.4996706]
[1735584713658,1.4945,194.68,194.52,23.78904364]
[1735584713659,21.82354364,194.68,194.54,4.4996706]
[1735584713956,2.5712,194.64,194.61,2.5715]
[1735584715250,2.5712,194.64,194.52,23.78904364]
[1735584715454,2.5712,194.64,194.62,2.5715]
[1735584715647,21.82354364,194.68,194.54,4.50334628]
[1735584715853,21.82354364,194.68,194.61,2.5715]
[1735584716558,2.5711,194.65,194.53,4.50374811]
[1735584716856,2.5711,194.65,194.54,4.50374811]
[1735584717056,2.5711,194.65,194.55,4.50374811]
[1735584717257,2.5711,194.65,194.56,4.50374811]
[1735584717453,2.5711,194.65,194.61,2.5715]
[1735584718752,2.5711,194.65,194.53,4.50289091]
[1735584718949,2.5711,194.65,194.62,2.5715]
[1735584719349,2.5711,194.65,194.56,4.50289091]
[1735584719554,2.571,194.66,194.63,2.5713]
[1735584719957,25.28354364,194.68,194.63,2.5713]
[1735584720161,2.5711,194.65,194.62,2.5714]
[1735584720363,12.69235446,194.66,194.53,17.19661681]
[1735584720567,12.69235446,194.63,194.54,4.50426235]
[1735584720857,12.69235446,194.63,194.52,3.46]
[1735584721061,12.69235446,194.63,194.53,4.50517529]
[1735584721257,12.69235446,194.63,194.52,3.46]
[1735584721258,2.5718,194.6,194.58,2.572]
[1735584721459,12.69235446,194.63,194.58,2.572]
[1735584722467,2.5716,194.61,194.58,2.572]
[1735584723370,2.5718,194.6,194.57,2.5721]
[1735584723575,2.5718,194.6,194.53,4.51018746]
[1735584723873,2.5718,194.6,194.54,4.51018746]
[1735584724176,2.5718,194.6,194.52,3.46]
[1735584724475,12.69235446,194.63,194.53,4.51140543]
[1735584724673,12.69235446,194.63,194.54,4.51140543]
[1735584724875,12.69235446,194.63,194.55,4.51140543]
[1735584725077,12.69235446,194.63,194.6,2.5715]
[1735584725976,12.69235446,194.63,194.53,12.69235446]
[1735584725977,12.69235446,194.63,194.61,2.5715]
[1735584726176,2.5711,194.64,194.61,2.5715]
[1735584726475,3.46,194.67,194.64,2.571]
[1735584726677,1.4945,194.68,194.56,12.69235446]
[1735584727271,1.4945,194.68,194.59,12.69235446]
[1735584727576,1.4945,194.68,194.65,2.5709]
[1735584727966,12.69235446,194.72,194.6,4.51335627]
[1735584728171,15.26245446,194.72,194.68,2.5706]
[1735584728372,15.26245446,194.72,194.62,4.51335627]
[1735584728573,15.26245446,194.72,194.63,4.51335627]
[1735584728775,15.26245446,194.72,194.68,2.5705]
[1735584729780,4.1165,194.74,194.62,12.69235446]
[1735584729975,4.1165,194.74,194.63,4.51351316]
[1735584730177,4.1165,194.74,194.64,4.5136868]
[1735584730373,1.5466,194.74,194.65,4.5136868]
[1735584730579,1.5466,194.74,194.66,4.5136868]
[1735584730783,1.5466,194.74,194.62,12.69235446]
[1735584731080,2.5705,194.69,194.63,4.51290724]
[1735584731281,12.69235446,194.72,194.6,1.5899]
[1735584731483,2.5706,194.69,194.64,2.5711]
[1735584732779,2.5706,194.69,194.61,4.5134779]
[1735584732982,2.5706,194.69,194.62,4.5134779]
[1735584733282,2.5706,194.69,194.6,1.5899]
[1735584733486,2.5706,194.69,194.64,2.571]
[1735584734184,12.69235446,194.72,194.64,2.571]
[1735584734387,2.5707,194.68,194.64,2.571]
[1735584736181,1.5466,194.74,194.47,6.91450138]
[1735584736182,2.5708,194.67,194.56,12.69235446]
[1735584736483,14.29405446,194.66,194.57,4.51532547]
[1735584736683,2.5711,194.65,194.61,2.5715]
[1735584737283,14.29405446,194.66,194.58,4.5218302]
[1735584737483,16.86505446,194.66,194.62,2.5713]
[1735584737685,16.86505446,194.66,194.56,3.46]
[1735584737883,16.86505446,194.66,194.59,2.5717]
[1735584738185,16.86505446,194.66,194.6,4.52099748]
[1735584738377,16.86505446,194.66,194.63,2.5713]
[1735584739075,1.6017,194.66,194.59,4.52082686]
[1735584739281,1.6017,194.66,194.6,4.52052567]
[1735584739488,1.6017,194.66,194.56,16.15235446]
[1735584739683,1.6017,194.66,194.63,2.5712]
[1735584739881,1.6017,194.66,194.56,16.15235446]
[1735584740180,1.6017,194.66,194.57,4.5202693]
[1735584740487,1.6017,194.66,194.63,2.5713]
[1735584740787,4.1726,194.66,194.63,2.5713]
[1735584741488,4.1726,194.66,194.64,2.5712]
[1735584741885,7.13862015,194.72,194.56,16.15235446]
[1735584742084,7.13862015,194.72,194.62,12.69235446]
[1735584742278,7.13862015,194.72,194.63,4.5170632]
[1735584742481,7.13862015,194.72,194.64,4.5170632]
[1735584742678,7.13862015,194.72,194.69,2.5704]
[1735584742884,7.13862015,194.72,194.63,4.51534743]
[1735584743085,7.13862015,194.72,194.64,4.51534743]
[1735584743286,7.13862015,194.72,194.65,4.51534743]
[1735584743487,7.13862015,194.72,194.66,4.51534743]
[1735584743687,2.57,194.73,194.69,2.5704]
[1735584743888,2.57,194.73,194.63,4.51269446]
[1735584744088,2.57,194.73,194.64,4.51269446]
[1735584744288,2.57,194.73,194.68,2.5705]
[1735584744488,2.57,194.73,194.65,12.69235446]
[1735584744683,2.57,194.73,194.66,4.50960613]
[1735584744888,2.57,194.73,194.65,12.69235446]
[1735584745189,2.57,194.73,194.69,2.5704]
[1735584747786,2.57,194.73,194.62,16.15235446]
[1735584748092,2.57,194.73,194.7,2.5704]
[1735584750482,17.75165446,194.76,194.62,16.15235446]
[1735584750692,2.5703,194.71,194.67,2.5707]
[1735584751086,2.5701,194.72,194.62,16.15235446]
[1735584751288,5.0593,194.76,194.63,4.51120141]
[1735584751492,5.0593,194.76,194.64,4.51114718]
[1735584751692,5.0593,194.76,194.65,4.51114718]
[1735584751993,5.0593,194.76,194.66,4.51114718]
[1735584752185,5.0593,194.76,194.62,16.15235446]
[1735584752382,5.0593,194.76,194.63,4.51078366]
[1735584752592,5.0593,194.76,194.64,4.51078366]
[1735584752793,2.5699,194.74,194.7,2.5703]
[1735584753384,2.5699,194.74,194.63,4.50990864]
[1735584753590,5.0593,194.76,194.64,4.50990864]
[1735584753890,5.0593,194.76,194.65,4.50990864]
[1735584754083,2.5699,194.74,194.69,2.5705]
[1735584754287,2.5699,194.74,194.62,16.15235446]
[1735584754593,2.5699,194.74,194.63,4.51070626]
[1735584754783,2.5699,194.74,194.7,2.5703]
[1735584755890,12.69235446,194.74,194.62,16.15235446]
[1735584756087,12.69235446,194.74,194.63,4.51144576]
[1735584756285,2.5703,194.71,194.68,2.5706]
[1735584757093,2.5699,194.74,194.71,2.5702]
[1735584757695,1.5993,194.76,194.63,4.51054442]
[1735584757991,5.0393,194.76,194.64,4.51054442]
[1735584758196,15.76465446,194.77,194.76,53.4567]
[1735584759490,18.33405446,194.77,194.76,53.4567]
[1735584764599,15.26175446,194.77,194.76,53.4567]
[1735584766700,2.5693,194.78,194.76,53.4567]
[1735584766896,1.498,194.79,194.76,56.0263]
[1735584767497,4.0673,194.79,194.76,56.0263]
[1735584768005,1.498,194.79,194.76,56.0263]
[1735584768201,10.67987577,194.78,194.76,56.0263]
[1735584768602,10.67987577,194.78,194.76,53.4567]
[1735584769199,2.5694,194.77,194.76,53.4567]
[1735584769402,2.5694,194.77,194.76,48.6023]
[1735584771505,2.5703,194.71,194.65,8.11057577]
[1735584772702,2.5703,194.71,194.68,2.5705]
[1735584773099,8.11057577,194.71,194.68,2.5705]
[1735584773404,8.11057577,194.71,194.63,9.69807577]
[1735584773706,2.5704,194.7,194.67,2.5707]
[1735584774206,2.5705,194.69,194.65,8.11057577]
[1735584774408,2.5705,194.69,194.66,2.5708]
[1735584777604,2.5704,194.7,194.67,2.5707]
[1735584777806,23.26009966,194.74,194.63,1.5875]
[1735584778209,12.68147951,194.71,194.63,1.5875]
[1735584778908,23.26009966,194.74,194.63,1.5875]
[1735584779109,23.26009966,194.74,194.64,4.52836213]
[1735584779409,2.5703,194.71,194.68,2.5706]
[1735584780205,7.13862015,194.73,194.64,1.506]
[1735584780511,2.5699,194.74,194.65,4.52778639]
[1735584780707,2.5699,194.74,194.66,4.52778639]
[1735584780913,2.57,194.73,194.67,4.52449097]
[1735584781112,41.23596011,194.75,194.64,1.506]
[1735584781313,41.23596011,194.75,194.67,2.5706]
[1735584781508,12.68147951,194.72,194.64,1.506]
[1735584781704,12.68147951,194.72,194.65,4.70773291]
[1735584781909,2.5705,194.69,194.66,2.5708]
[1735584783813,2.5705,194.69,194.67,2.5707]
[1735584784012,2.5704,194.7,194.67,2.5707]
[1735584785617,2.5702,194.71,194.68,2.5705]
[1735584786726,2.5701,194.72,194.67,2.5707]
[1735584786925,2.5701,194.72,194.68,4.71579888]
[1735584787224,2.5701,194.72,194.64,1.506]
[1735584787427,2.5701,194.72,194.65,12.26179656]
[1735584787728,2.5701,194.72,194.66,12.26179656]
[1735584787929,2.5701,194.72,194.68,2.5705]
[1735584788123,12.68147951,194.75,194.68,2.5705]
[1735584788324,2.5705,194.7,194.66,2.5708]
[1735584788729,2.5705,194.7,194.64,1.506]
[1735584788929,2.5705,194.7,194.65,2.5709]
[1735584789128,2.5705,194.7,194.66,4.71596508]
[1735584789327,2.5705,194.7,194.64,1.506]
[1735584789627,2.5705,194.7,194.65,12.26131506]
[1735584789825,12.68147951,194.72,194.66,4.71589041]
[1735584790031,3.44,194.71,194.63,1.5875]
[1735584790225,3.44,194.71,194.59,4.9814]
[1735584790226,3.44,194.71,194.64,2.5711]
[1735584790427,2.5707,194.68,194.65,4.71443217]
[1735584790626,12.68147951,194.69,194.64,2.5711]
[1735584790831,12.68147951,194.69,194.62,2.5714]
[1735584791129,12.68147951,194.69,194.59,1.5414]
[1735584791130,2.571,194.66,194.63,4.71586703]
[1735584791331,2.571,194.66,194.59,1.5414]
[1735584791532,2.571,194.66,194.6,12.26363993]
[1735584791727,2.571,194.66,194.61,12.26363993]
[1735584791928,2.5711,194.65,194.62,4.71678459]
[1735584792127,2.5711,194.65,194.59,1.5414]
[1735584792430,2.5711,194.65,194.6,12.2621894]
[1735584792630,2.5711,194.65,194.61,4.71622669]
[1735584792833,2.5711,194.65,194.62,4.71622669]
[1735584793021,2.5715,194.63,194.57,3.0479]
[1735584793227,2.5715,194.63,194.46,88.8770758]
[1735584793228,12.68147951,194.63,194.52,1.5917]
[1735584793427,12.68147951,194.63,194.53,12.26797673]
[1735584793627,12.68147951,194.6,194.56,2.5722]
[1735584794127,12.68147951,194.6,194.52,1.5917]
[1735584794326,12.68147951,194.6,194.53,12.27059798]
[1735584794527,12.68147951,194.6,194.49,7.54701158]
[1735584794727,12.68147951,194.6,194.5,4.71689045]
[1735584794928,2.5723,194.56,194.48,3.0767]
[1735584795124,2.5723,194.56,194.49,4.66307083]
[1735584795328,2.5723,194.56,194.5,4.66307083]
[1735584795531,2.5723,194.56,194.48,3.0767]
[1735584795532,3.44,194.57,194.48,15.75817951]
[1735584795733,3.44,194.57,194.49,12.11645194]